Cogmind - Beta 15 @@@ ROGUE MODE // 2025.08.28 @ 19:53:18 Player: beans Result: Destroyed by D-53 Grenadier with Mini Grenade Launcher Performance ------------- Evolutions (1) 500 Regions Visited (3) 600 Robots Destroyed (11) 55 Value Destroyed (277) 277 Prototype IDs (0) 0 Alien Tech Used (0) 0 Bonus (0) 0 TOTAL SCORE: 1432 Bonus ------- None Cogmind --------- Core Integrity 0/400 Matter 219/300 Energy 98/100 System Corruption 0% Temperature Cool (0) Movement Core (50) Location -9/Mines Parts ------- > --- POWER (1) -------- (None) > --- PROPULSION (2) --- (None) > --- UTILITY (2) ------ (None) > --- WEAPON (4) ------- (None) > --- INVENTORY (5) ---- Light Treads Light Treads Peak State ------------ > --- POWER ------------ (None) > --- PROPULSION ------- (None) > --- UTILITY ---------- (None) > --- WEAPON ----------- Assault Rifle Makeshift Shrapnel Gun Light Cannon > --- INVENTORY -------- Light Treads Light Treads Assault Rifle [Rating: 6] Favorites ----------- Power None Propulsion Light Treads Treads Light Treads Utility None Weapon Assault Rifle Ballistic Gun Assault Rifle Ballistic Cannon Light Cannon Build | -11 -10 -9 -9 ------- Run | Yrd Mat Mat Min Slots Evolved 2 | . . 2 . Power . | . . . . Propulsion . | . . . . Utility . | . . . . Weapon 2 | . . 2 . Parts Attached 8 | 4 3 . 1 Power . | . . . . Engine . | . . . . Core . | . . . . Reactor . | . . . . Propulsion 2 | 2 . . . Treads 2 | 2 . . . Leg . | . . . . Wheel . | . . . . Hover . | . . . . Flight . | . . . . Utility . | . . . . Device . | . . . . Storage . | . . . . Processor . | . . . . Hackware . | . . . . Protection . | . . . . Artifact . | . . . . Weapon 6 | 2 3 . 1 Energy Gun . | . . . . Energy Cannon . | . . . . Ballistic Gun 5 | 2 2 . 1 Ballistic Cannon 1 | . 1 . . Launcher . | . . . . Special Weapon . | . . . . Impact Weapon . | . . . . Slashing Weapon . | . . . . Piercing Weapon . | . . . . Special Melee Weapon . | . . . . Unidentified Prototypes . | . . . . Parts Lost 4 | . . . 4 Power . | . . . . Propulsion . | . . . . Utility . | . . . . Weapon 4 | . . . 4 Highest Loss Streak 4 | . . . 4 To Critical Strikes . | . . . . Average Backups 1 | . . 3 2 Power . | . . . . Propulsion . | . . 2 2 Utility . | . . . . Weapon . | . . 1 . Tool/Special . | . . . . Unused Backups . | . . . . Power . | . . . . Propulsion . | . . . . Utility . | . . . . Weapon . | . . . . Tool/Special . | . . . . Average Slot Usage (%) 43 | . 53 22 26 Treads 16 | . 25 . . Ballistic Gun 15 | . 16 11 17 Ballistic Cannon 10 | . 11 11 9 Peak Build Rating 6 | 4 4 2 6 Average Rating 3 | 2 3 2 4 On Entrance 2 | . 4 2 2 Naked Turns 12 | . . . 12 Heaviest Build 7 | 2 5 5 7 Greatest Support 40 | 40 40 3 3 Greatest Overweight (x) 2 | . 1 1 2 Average Overweight (x) . | . . 1 1 Largest Inventory Capacity 5 | 5 5 5 5 Average Capacity 5 | 5 5 5 5 Most Carried 4 | 2 4 3 4 Average Carried 1 | . . 3 2 Final Capacity 5 | 5 5 5 5 Final Carried 3 | . 3 3 2 Class Distribution -------------------- 81% | Mutant 18% | Gunner Dominant Class ---------------- Mutant | -10/Materials Mutant | -9/Materials Gunner | -9/Mines Resources | -11 -10 -9 -9 ----------- Run | Yrd Mat Mat Min Matter Collected 511 | 246 218 47 . Remotely . | . . . . Salvage Created 342 | 50 247 45 . Parts 25 | 3 18 4 . Haulers Intercepted . | . . . . Recyclers Shooed 1 | . 1 . . Parts Field Recycled . | . . . . Retrieved Matter . | . . . . Parts Self-Destructed . | . . . . Prevented . | . . . . Kills | -11 -10 -9 -9 ------- Run | Yrd Mat Mat Min Combat Hostiles Destroyed 9 | . 8 1 . Guns 5 | . 4 1 . Cannons 4 | . 4 . . Classes Destroyed 4 | 1 2 1 . Recycler 2 | 1 1 . . Swarmer 3 | . 3 . . Grunt 5 | . 5 . . Sentry 1 | . . 1 . Best Kill Streak 4 | 1 4 1 . Combat Bots Only 3 | . 3 1 . Max Kills in Single Turn 1 | 1 1 1 . Gunslinging . | . . . . Exploded . | . . . . Melee . | . . . . Uniques/NPCs Destroyed . | . . . . Combat | -11 -10 -9 -9 -------- Run | Yrd Mat Mat Min Hostile Shots Fired 82 | . 53 8 21 Missed 20 | . 15 . 5 Hits 62 | . 38 8 16 Projectile 62 | . 38 8 16 AOE 11 | . . . 11 Critical Strikes 1 | . . 1 . Damage Taken 1026 | . 375 115 536 Core 451 | . 47 58 346 Absorbed by Shields . | . . . . Core Remaining (%) 90 | 100 81 . . Volleys Fired 45 | 3 36 4 2 Largest 3 | 2 2 2 3 Hottest 64 | 40 50 50 64 Shots Fired 90 | 6 72 8 4 Gun 50 | 6 36 4 4 Cannon 40 | . 36 4 . Launcher . | . . . . Special . | . . . . Kinetic 90 | 6 72 8 4 Thermal . | . . . . Explosive . | . . . . Electromagnetic . | . . . . Robot Hit Streak 6 | 3 6 5 6 Robot Miss Streak 6 | . 6 1 2 Penetration Max . | . . . . Secondary Targets . | . . . . Shots Hit Robots 48 | 3 36 6 3 Core Hits 20 | 2 15 2 1 Critical Kills . | . . . . Critical Parts Destroyed . | . . . . Critical Strikes 2 | . 2 . . Blast 2 | . 2 . . Melee Attacks . | . . . . Impact . | . . . . Slashing . | . . . . Piercing . | . . . . Sneak Attacks . | . . . . Combat Hostiles . | . . . . Follow-up Attacks . | . . . . Damage Inflicted 756 | 40 593 83 40 Guns 342 | 40 215 47 40 Cannons 414 | . 378 36 . Explosions . | . . . . Melee . | . . . . Ramming . | . . . . Kinetic 756 | 40 593 83 40 Thermal . | . . . . Explosive . | . . . . Electromagnetic . | . . . . Impact . | . . . . Slashing . | . . . . Piercing . | . . . . Highest Corruption . | . . . . Average Corruption . | . . . . Corruption Purged . | . . . . Corruption Blocked . | . . . . Overload Shots . | . . . . Overflow Damage 9 | . 9 . . Projectiles 9 | . 9 . . Explosions . | . . . . Melee . | . . . . Knockbacks 9 | . 9 . . Impact . | . . . . Kinetic 7 | . 7 . . Secondary 2 | . 2 . . Self-Inflicted Damage . | . . . . Shots . | . . . . Rammed . | . . . . Targets Rammed . | . . . . Kicked . | . . . . Crushed . | . . . . Highest Temperature 15 | . 3 15 2 Average Temperature 4 | . 3 9 1 Received Heat Transfer 213 | . 123 54 36 Siege Activations . | . . . . Martial Activations . | . . . . Shielding Activations . | . . . . Robots Disrupted . | . . . . Combat Hostiles . | . . . . Robots Corrupted . | . . . . Combat Hostiles . | . . . . Parts Fried . | . . . . Impact Corruptions . | . . . . Robots Melted . | . . . . Combat Hostiles . | . . . . Parts Melted . | . . . . Heat Transferred . | . . . . Parts Sabotaged . | . . . . Parts Stolen . | . . . . Parts Stripped . | . . . . Power Chain Reactions . | . . . . Alert | -11 -10 -9 -9 ------- Run | Yrd Mat Mat Min Maximum Alert Level . | . . . . Low Security (%) 100 | 100 100 100 100 Level 1 . | . . . . Level 2 . | . . . . Level 3 . | . . . . Level 4 . | . . . . Level 5 . | . . . . High Security . | . . . . Max Security . | . . . . Peak Influence 150 | 5 150 70 23 Initial 50 | . . 50 23 Average 36 | 1 52 51 4 Influence Increases 275 | 5 240 30 . Destroy 0b10 Robot/C 180 | . 160 20 . Destroy 0b10 Robot/NC 10 | 5 5 . . Destroy Leader 40 | . 30 10 . Disable Machine 30 | . 30 . . Lose Combat Pursuer 15 | . 15 . . Influence Decreases 275 | 5 120 90 60 Entered New Map 107 | . . 70 37 Time Decay 168 | 5 120 20 23 Squads Dispatched 2 | . 2 . . Investigation 1 | . 1 . . Extermination . | . . . . Reinforcement 1 | . 1 . . Assault . | . . . . Garrison . | . . . . Intercept . | . . . . Searches Triggered . | . . . . Construction Impeded . | . . . . Haulers Reinforced . | . . . . Active Scanning Responses . | . . . . Cargo Convoy Interrupts . | . . . . Stealth | -11 -10 -9 -9 --------- Run | Yrd Mat Mat Min Distress Signals . | . . . . Communications Jammed . | . . . . Distress Signals . | . . . . Times Spotted 19 | . 13 1 5 Peak Tracking Total 5 | . 5 1 5 Tactical Retreats 1 | . 1 . . Traps | -11 -10 -9 -9 ------- Run | Yrd Mat Mat Min Traps Triggered 2 | . 2 . . Indirectly . | . . . . Trap Hack Attempts . | . . . . Triggered . | . . . . Disarmed . | . . . . Reprogrammed . | . . . . Reused . | . . . . Traps Extracted . | . . . . Installed . | . . . . Triggered . | . . . . Machines | -11 -10 -9 -9 ---------- Run | Yrd Mat Mat Min Machines Disabled 2 | . 2 . . Max in Single Turn 1 | . 1 . . Machines Repaired . | . . . . Machines Dismantled . | . . . . Machines Sabotaged . | . . . . Overloaded Fab Kills . | . . . . Hacking | -11 -10 -9 -9 --------- Run | Yrd Mat Mat Min Machines Accessed . | . . . . Terminals . | . . . . Fabricators . | . . . . Repair Stations . | . . . . Recycling Units . | . . . . Scanalyzers . | . . . . Garrison Access . | . . . . Total Hacks . | . . . . Successful . | . . . . Failed . | . . . . Catastrophic . | . . . . Database Lockouts . | . . . . Manual . | . . . . Terminals . | . . . . Fabricators . | . . . . Repair Stations . | . . . . Recycling Units . | . . . . Scanalyzers . | . . . . Garrison Access . | . . . . Terminal Hacks . | . . . . Fabricator Hacks . | . . . . Repair Station Hacks . | . . . . Recycling Unit Hacks . | . . . . Scanalyzer . | . . . . Garrison Access Hacks . | . . . . Unauthorized Hacks . | . . . . Terminals . | . . . . Fabricators . | . . . . Repair Stations . | . . . . Recycling Units . | . . . . Scanalyzers . | . . . . Garrison Access . | . . . . Data Cores Recovered . | . . . . Used . | . . . . Hacking Detections . | . . . . Full Trace Events . | . . . . Feedback Events . | . . . . Feedback Blocked . | . . . . Robot Schematics Acquired . | . . . . Robots Built . | . . . . Authchips . | . . . . Time . | . . . . Total Robot Build Rating . | . . . . Part Schematics Acquired . | . . . . Parts Built . | . . . . Authchips . | . . . . Time . | . . . . Total Part Build Rating . | . . . . Parts Repaired . | . . . . Time . | . . . . Parts Recycled . | . . . . Recycled Matter . | . . . . Retrieved Matter . | . . . . Retrieved Components . | . . . . Parts Scanalyzed . | . . . . Part Schematics Acquired . | . . . . Parts Damaged . | . . . . Bothacking | -11 -10 -9 -9 ------------ Run | Yrd Mat Mat Min Used RIF Installer . | . . . . Robots Hacked . | . . . . Non-combat . | . . . . Combat . | . . . . Robot Hacks Applied . | . . . . Relay Couplers Released . | . . . . Fabnet Peak Effective % . | . . . . Robots Rewired . | . . . . Allies Hacked . | . . . . Hacks Repelled . | . . . . Allies | -11 -10 -9 -9 -------- Run | Yrd Mat Mat Min Total Allies . | . . . . Largest Group . | . . . . Highest-Rated Group . | . . . . Highest-Rated Ally . | . . . . Total Orders . | . . . . Ally Attacks . | . . . . Total Damage . | . . . . Kills . | . . . . Allies Corrupted . | . . . . Allies Melted . | . . . . Intel | -11 -10 -9 -9 ------- Run | Yrd Mat Mat Min Active Infowar (turns) . | . . . . Robot Analysis Total . | . . . . Derelict Logs Recovered . | . . . . Drone Launches . | . . . . Drone Recoveries . | . . . . Exploration | -11 -10 -9 -9 ------------- Run | Yrd Mat Mat Min Turns Passed 642 | 59 373 56 154 Spaces Moved 360 | 36 150 45 129 Core 213 | 12 27 45 129 Treads 147 | 24 123 . . Legs . | . . . . Wheels . | . . . . Hover . | . . . . Flight . | . . . . Fastest Speed 50 | 50 50 100 50 Average Speed 127 | 123 148 100 113 Slowest Speed 160 | 160 160 100 150 Overloaded Moves . | . . . . Propulsion Burnouts . | . . . . Robots Hopped . | . . . . Potential Cave-ins . | . . . . Cave-ins Triggered . | . . . . Exploration Rate (%) 18 | 3 39 8 23 Regions Visited 3 Branch Regions 1 Pre-discovered Areas . | . . . . Known Exits Taken . | . . . . Unknown Exits Taken 3 | 1 1 1 . Scrap Searched . | . . . . Spaces Dug . | . . . . Terrain Destroyed . | . . . . Melee . | . . . . Projectile . | . . . . AOE . | . . . . Terrain Rammed . | . . . . Walls Destroyed . | . . . . Machines Disabled . | . . . . Actions | -11 -10 -9 -9 --------- Run | Yrd Mat Mat Min Total 456 | 46 228 48 134 Wait 30 | . 30 . . Move 357 | 35 149 44 129 Hop . | . . . . Pick Up 11 | 4 6 . 1 Fast Attach . | . . . . Attach 9 | 4 3 . 2 Detach . | . . . . Swap 2 | . 2 . . Drop 2 | . 2 . . Fire 45 | 3 36 4 2 Melee . | . . . . Ram . | . . . . Kick . | . . . . Crush . | . . . . Escape Stasis . | . . . . Rewire . | . . . . Trap . | . . . . Miscellaneous . | . . . . Route ------- -11/Scrapyard -10/Materials -9/Materials -9/Mines History --------- Turn | Location | Event 15 | -11/Scrapyard | Discovered new exit (range 15) 60 | -11/Scrapyard | Entered Materials 307 | -10/Materials | Build established: Mutant 406 | -10/Materials | Discovered new exit (range 10) 433 | -10/Materials | Entered another Materials area 433 | -9/Materials | Evolved 2 slots: Weapon x2 458 | -9/Materials | Discovered new exit (range 15) 489 | -9/Materials | Entered Mines 518 | -9/Mines | A weapon hastily lodged in a ceiling crevice suddenly fell to the ground 615 | -9/Mines | Assembled infested the area 632 | -9/Mines | Core integrity fell below 50% 642 | -9/Mines | Core integrity fell below 20% 643 | -9/Mines | Destroyed by D-53 Grenadier with Mini Grenade Launcher Last Messages --------------- right now, after essentially being evicted by all these Unaware tunnelers." T-07 Excavator is excavating. "Blame H1-IDC, who apparently didn't care about the consequences of repeatedly making a mess in Materials. Shooting at robots and generally destroying stuff raised the alert level high enough to trigger assault squads over in the main complex, and they later decided the best way to defend their interests would be to start expanding in this direction." K-01 Serf collects debris. ALERT: Infestation in the mines, dispatching Demolisher response squad. C-30 ARC bursts open, deploying its payload. D-53 Grenadier unfolds itself. Lgt. Cannon destroyed. Mak. Shrapnel Gun destroyed. Assault Rifle destroyed. The unstable cave ceiling collapses. Map ----- +----------------------------------------------------+ | ?????????????????????????????????????????????????? | | ?????????????????????????????????????????????????? | | ?????????????????????????????????????????????????? | | ?????????????????????????????????????????????????? | | ?????????????????????????????????????????????????? | | ?????????????????????????????????????????????????? | | ?????????????????????????????????????????????????? | | ?????????????????????????????????????????????????? | | ?????????????????????????????????????????????????? | | ?????????????????????????????????????????????????? | | ?????????????????????????????????????????????????? | | ?????????????????????????????????????????????????? | | ?????????????????????????????????????????????????? | | ?????????????????????????????????????????????????? | | ?????????????????????????????????????????????????? | | ???????????????????????? ???????????????????????? | | ?????????????????????### #??????????????????????? | | ?????????????????????# ???????????????# ???? | | ?????????????????????? ""??????????????## #???? | | ?????????????????????? ""??????????????# #???? | | ??????????????????????? ""?????????????? #???? | | ??????????????????????? ??????????????? ????? | | ???????????????????????# #??????????????? ????? | | ???????????????##????### ##?????????????? ????? | | ???????????????# ???## ##?????????????# #????? | | ???????????????# ???# @ #?????????????# #????? | | ???????????????# ??# #?????????????# #???## | | ???????????????# ### #?????????????# #???# | | ???????????????# # # ########??????# #???# | | ??????????????## d ##????## #???? | | ????????????# # ### ##??## ##### | | ????????? ### # ###?# #### # | | ???? g g ##?## | | ???? d # # ### ### | | ???? " # ## ### | | ????? "%" # #### | | ????? " #### ##??## #### | | ?????? # ### ###??# #????## ##?## | | ?????? ### # ??# ##????# #?????####?## | | ??????????## ?#?# #########?????# ######????## | | ???????????# ????# #??????????????# #???## | | ??????????? ?????##???????????????# ##### | | ?????????? ???????????????????????##### | | ?????????#????????????????????????????# | | ??????????????????????????????????????########## | | ???????????????????????????????????????????????### | | ?????????????????????????????????????????????????? | | ?????????????????????????????????????????????????? | | ?????????????????????????????????????????????????? | | | +----------------------------------------------------+ Best States ------------- Heat Dissipation 28 Energy Generation 5 Energy Capacity 100 Matter Stores 300 Matter Capacity 300 Sight Range 16 Terrain Scan Density 10 Evasion (%) 50 Recoil Reduction 2 Item Schematics ----------------- None Robot Schematics ------------------ None Fabricated ------------ Nothing Repaired ---------- Nothing Alien Tech Used ----------------- None Achievements -------------- None Challenges ------------ None Game ------ Seed ElectrostormCoreRailgun Manual? 0 Play Time 00:04:50 Cumulative 107.7 hours Start 2025.08.28 @ 19:48:44 End 2025.08.28 @ 19:53:18 Sessions 1 Manual Loads 0 Difficulty Rogue Special Mode None Game No. 401 Rogue 401 Adventurer 0 Explorer 0 Win Type - Total 0 Types 0/0/0/0/0/0/0/0/0/0 Lore% 43 Gallery% 43 Achievement% 31 Wizard Run 0 Options --------- Layout 2 ASCII 0 Keyboard 0 Movement Mouse Keybinds 0 Fullscreen 2 Font 24/Smallcaps Map View 50x44 Zoom Use 0% Tactical HUD 0 Map Filters NONE Filters NONE Steam 1 RUN: 555d75fa-c3f1-4329-a849-91f3d8b04115